[Event "Baku Open 2024"]
[Site "Baku"]
[Date "2024.07.07"]
[Round "9.20"]
[White "Aleksandrov, Aleksej"]
[Black "Tregubenko, Nikolay"]
[Result "1-0"]
[ECO "E73"]
[WhiteElo "2405"]
[BlackElo "2246"]
[Annotator "TA"]
[PlyCount "81"]
[EventDate "2024.06.29"]
[EventType "swiss"]
[EventCountry "AZE"]
[SourceTitle "playchess.com"]
[Source "ChessBase"]
[SourceQuality "1"]
[TimeControl "5400+30"]

{[%evp 16,81,44,39,41,36,48,26,24,-21,68,62,210,195,222,205,210,176,204,189,323,240,242,247,472,492,450,468,614,602,595,305,307,211,453,460,595,597,678,662,663,478,443,470,679,620,644,600,758,744,691,597,646,659,719,723,1206,1160,729,718,5052,5129,2885,2625,4806,1020,29982,6605]} 1. d4 {[%emt 0:00:14]} Nf6 {[%emt 0:00:03]} 2. c4 {[%emt 0:00:04]} g6 {[%emt 0:00:04]} 3. Nc3 {[%emt 0:00:05]} Bg7 {[%emt 0:00:04]} 4. e4 {[%emt 0:00:03]} d6 {[%emt 0:00:05]} 5. Be2 {[%emt 0:00:03]} O-O {[%emt 0:00:06]} 6. Be3 {[%emt 0:00:02]} e5 {[%emt 0:05:11]} 7. d5 {[%emt 0:00:05]} Na6 {[%emt 0:00:07] The main line 7...Na6 scores better than 7...a5.} 8. h4 {[%emt 0:02:18]} Nc5 {[%emt 0:00:23] E73: King's Indian: Averbakh Variation without 6...c5.} 9. Qc2 {[%emt 0:00:04]} Qe8 {[%emt 0:02:10]} 10. h5 {[%emt 0:06:29]} Nxh5 {[%emt 0:01:52]} 11. Bxh5 {[%emt 0:00:06]} (11. Bxc5 {simplifies} dxc5 12. Nb5 Qd7 13. Bxh5 gxh5 14. Rxh5 a6 15. Nc3) 11... gxh5 {[%emt 0:00:04]} 12. Nb5 $146 {[%emt 0:00:04]} ({Predecessor:} 12. Bxc5 dxc5 13. Nf3 f5 14. O-O-O fxe4 15. Nxe4 Bf5 16. Rde1 h6 17. Qe2 b5 18. Nfd2 bxc4 19. Nxc4 {1-0 Abdusattorov,N (2661)-Giri,A (2773) Chess.com Rapid Wk12 Swiss 2022 (4)}) 12... Qe7 {[%emt 0:14:47]} (12... Na6 $11) 13. Rxh5 $14 {[%emt 0:00:54]} (13. Bxc5 {simplifies} dxc5 14. Rxh5 a6 15. Nc3) 13... f5 {[%emt 0:00:22]} ({Black should try} 13... a6 $14 14. Nc3 Qe8) 14. exf5 $18 {[%emt 0:00:36]} e4 {[%emt 0:00:57]} 15. g4 {[%emt 0:01:10]} Nd3+ {[%emt 0:09:38]} 16. Kf1 {[%emt 0:00:02]} Bxb2 {[%emt 0:02:03]} 17. Rd1 {[%emt 0:06:28]} Be5 {[%emt 0:02:37]} (17... Bf6 $142 18. Nh3 (18. Nxa7 Rxa7 19. Bxa7 Qg7 $11) 18... Bd7 19. Nxc7 (19. Nxa7 $2 Be8 $19) 19... Rac8) 18. Rxd3 {[%emt 0:01:49]} (18. Bxa7 $2 b6 19. Nh3 Bd7 $19) 18... exd3 {[%emt 0:00:06]} 19. Qxd3 {[%emt 0:00:02]} c5 $2 {[%emt 0:01:36]} (19... Bd7 {is a better defense.} 20. Nf3 (20. Bxa7 $2 Bxb5 21. Be3 Be8 $19) (20. Nxc7 Bxf5 21. gxf5 Qxc7 $16) 20... Be8) 20. Nf3 $18 {[%emt 0:00:27]} a6 {[%emt 0:05:38]} 21. Nc3 {[%emt 0:04:53]} Rf7 {[%emt 0:06:51]} 22. Ne4 {[%emt 0:09:03]} b5 {[%emt 0:01:16]} 23. Neg5 {[%emt 0:00:43]} Rg7 {[%emt 0:01:58]} 24. Qe4 {[%emt 0:00:11]} (24. cxb5 axb5 25. Ne6 (25. Qxb5 $2 Ba6 $19) 25... b4 $18) (24. Nxe5 $6 Qxe5 25. Qe4 (25. cxb5 axb5 26. Qe4 Qxe4 $17) 25... bxc4 26. Qxe5 (26. Qxc4 Bb7 $17) 26... dxe5 $16) 24... bxc4 $2 {[%emt 0:03:47] [#]} (24... Bf6 25. Ne6 Bxe6 26. dxe6 Qb7 27. Qxb7 Rxb7) 25. Ne6 $1 $18 {[%emt 0:04:52]} (25. Qxc4 Rb8 $18) 25... Bxe6 {[%emt 0:03:51]} 26. dxe6 {[%emt 0:00:04]} Re8 {[%emt 0:02:40]} 27. Nxe5 {[%emt 0:06:23]} dxe5 {[%emt 0:00:38]} 28. g5 {[%emt 0:00:06]} Qb7 {[%emt 0:00:27]} 29. Rh4 {[%emt 0:00:28]} (29. Qxe5 $2 Qf3 30. f6 Qxh5 $19) (29. Qxc4 Qb1+ 30. Ke2 Qxf5 $15) 29... Rc7 {[%emt 0:08:05]} (29... Qxe4 $142 30. Rxe4 Rc7 31. Rxe5 (31. Rxc4 Rf8 $18) 31... Rc6) 30. Qxb7 {[%emt 0:01:22]} Rxb7 {[%emt 0:00:28]} 31. Rxc4 {[%emt 0:03:30]} h6 {[%emt 0:03:16]} 32. Rxc5 {[%emt 0:06:25]} (32. Bxc5 hxg5 33. Bd6 Rb6 $16) 32... hxg5 {[%emt 0:01:48]} 33. a4 {[%emt 0:02:12]} Rb1+ {[%emt 0:05:20]} 34. Kg2 {[%emt 0:00:43]} Rb4 {[%emt 0:01:09]} 35. Kg3 {[%emt 0:00:38]} (35. Rxe5 Kg7 $18) 35... Rb1 {[%emt 0:03:30]} 36. Rxe5 {[%emt 0:04:00]} Kg7 {[%emt 0:00:54]} 37. Bxg5 {[%emt 0:00:06]} Rc8 {[%emt 0:02:36]} 38. f6+ {[%emt 0:00:43]} Kg6 {[%emt 0:00:04]} 39. f7 {[%emt 0:00:11]} Rg1+ {[%emt 0:02:20]} 40. Kf3 {[%emt 0:00:49]} (40. Kf4 $142 Rgc1 41. Be7 R1c4+ 42. Kf3 Rc3+ 43. Kg2) 40... Kg7 {[%emt 0:02:02]} 41. Be7 {[%emt 0:00:28]} (41. Rf5 $142 Kg6 42. f8=Q (42. f8=R Re1 43. Be3 Rxe3+ 44. fxe3 Rc7 45. R8f6+ Kh7 46. Rf7+ Kg6 47. Rxc7 Kxf5) 42... Rxf8 43. Rxf8 Kxg5 44. e7 (44. Rg8+ Kf5 45. Rxg1 Kxe6 46. Rg6+ Ke7 47. Rxa6 Kf7 48. a5 Ke7) 44... Re1 45. e8=Q (45. e8=B Rc1 $18) 45... Rxe8 46. Rxe8) 1-0

[Event "Baku Open 2024"]
[Site "Baku"]
[Date "2024.07.07"]
[Round "9.21"]
[White "Ajay Santhosh Parvathareddy"]
[Black "Ahmad, Khagan"]
[Result "0-1"]
[ECO "B90"]
[WhiteElo "2163"]
[BlackElo "2401"]
[Annotator "TA"]
[PlyCount "116"]
[EventDate "2024.06.29"]
[EventType "swiss"]
[EventCountry "AZE"]
[SourceTitle "playchess.com"]
[Source "ChessBase"]
[SourceQuality "1"]
[TimeControl "5400+30"]

{[%evp 15,116,5,32,0,16,10,29,22,30,37,18,0,0,0,0,0,0,-35,-35,-35,-34,-46,-28,-50,-39,-60,-43,-62,-58,-73,-77,-93,-86,-78,-70,-84,-57,-64,-57,-88,-41,-61,-48,-41,-33,-54,-43,-118,-118,-178,-162,-209,-197,-203,-26,-17,-29,-14,-35,-57,0,-9,0,-900,-898,-869,-179,-188,-178,-157,-193,-176,-193,-181,-182,-228,-208,-395,-382,-394,-378,-390,-385,-812,-812,-4639,-3817,-5093,-2342,-5089,-4008,-5073,-5065,-3183,-2843,-2496,-2212,-29966,-29969,-29986,-29987,-29997,-616]} 1. e4 {[%emt 0:00:01]} c5 {[%emt 0:01:13]} 2. Nf3 {[%emt 0:00:02]} d6 {[%emt 0:00:04]} 3. d4 {[%emt 0:00:07]} cxd4 {[%emt 0:00:04]} 4. Nxd4 {[%emt 0:00:05]} Nf6 {[%emt 0:00:01]} 5. Nc3 {[%emt 0:00:07]} a6 {[%emt 0:00:03]} 6. Be3 {[%emt 0:00:13]} e5 {[%emt 0:00:05]} 7. Nb3 {[%emt 0:00:07]} Be6 {[%emt 0:00:03]} 8. h3 {[%emt 0:00:08] B90: Sicilian Najdorf: Unusual White 6th moves, 6 Be3 Ng4 and 6 Be3 e5.} Be7 {[%emt 0:00:31]} 9. Qf3 {[%emt 0:00:13]} Nbd7 {[%emt 0:01:58]} 10. O-O-O {[%emt 0:00:27]} Rc8 {[%emt 0:00:05]} 11. Nd5 $1 {[%emt 0:04:02] 11.g4 is not played anymore.} Bxd5 {[%emt 0:00:31]} 12. exd5 {[%emt 0:00:07]} Nb6 {[%emt 0:00:52]} 13. Bxb6 {[%emt 0:05:41]} Qxb6 {[%emt 0:00:05]} 14. Bd3 $146 {[%emt 0:00:06]} ({Predecessor:} 14. Kb1 a5 15. g4 a4 16. Nd2 O-O 17. a3 Qc5 18. c4 b5 19. g5 e4 20. Qc3 {½-½ Babiy,O (2363)-Guerra Bastida,D (2299) Palma de Mallorca op 5th 2016 (9)}) 14... Nd7 {[%emt 0:01:14]} 15. Kb1 {[%emt 0:02:28]} g6 {[%emt 0:03:05]} 16. g4 {[%emt 0:01:13]} Bh4 {[%emt 0:00:41]} 17. Rdf1 {[%emt 0:06:09]} Qd8 {[%emt 0:08:36]} 18. Rfg1 {[%emt 0:08:33]} Qg5 {[%emt 0:15:36]} 19. Na5 {[%emt 0:01:53]} Nc5 {[%emt 0:00:23]} 20. Nc4 {[%emt 0:02:00]} Qd8 {[%emt 0:00:21]} 21. Qe3 {[%emt 0:04:21]} O-O {[%emt 0:19:19]} 22. Nd2 {[%emt 0:05:24]} Bg5 {[%emt 0:01:04]} 23. Qe2 {[%emt 0:00:05]} Bxd2 {[%emt 0:02:03]} 24. Qxd2 {[%emt 0:00:05]} Qh4 {[%emt 0:06:51]} 25. f3 {[%emt 0:11:40]} Rc7 {[%emt 0:09:11]} 26. c3 {[%emt 0:02:31]} b5 {[%emt 0:02:10]} 27. Bc2 {[%emt 0:00:40]} Re8 {[%emt 0:12:34]} (27... Rb8 $17 28. f4 Nd7) 28. f4 {[%emt 0:14:14]} exf4 {[%emt 0:01:16]} 29. Qxf4 {[%emt 0:00:19]} Re5 {[%emt 0:00:09]} 30. Rd1 {[%emt 0:00:58]} Rce7 {[%emt 0:00:21]} 31. b4 {[%emt 0:03:06] [#]} (31. a3 $15) 31... Nd7 $1 $17 {[%emt 0:02:40]} 32. Qd4 {[%emt 0:01:02]} (32. Rc1 $17) 32... Re3 $19 {[%emt 0:02:29]} 33. c4 {[%emt 0:00:23]} (33. Qf4 $142) 33... bxc4 $19 {[%emt 0:01:23]} (33... Rxh3 34. Rxh3 Qxh3 35. c5) 34. Qxc4 {[%emt 0:00:04]} Re2 $2 {[%emt 0:04:15]} ({Inferior is} 34... Rxh3 35. Rxh3 Qxh3 36. Qc7 $11) ({Black should try} 34... Ne5 $19 35. Qxa6 Qf6 (35... Rxh3 36. Rxh3 Qxh3 37. Qxd6 $15) (35... Qf2 36. Rhf1 $11)) 35. Qxa6 $11 {[%emt 0:02:33]} Qg3 {[%emt 0:01:23]} 36. Qc8+ {[%emt 0:01:51]} Kg7 {[%emt 0:00:31]} 37. Qc4 $1 {[%emt 0:00:29]} R7e3 {[%emt 0:01:10]} (37... Qf3 $1 $15 38. Rhf1 Qxh3) 38. Qd4+ {[%emt 0:04:12]} Ne5 {[%emt 0:01:18]} 39. Rdg1 $2 {[%emt 0:00:07][%mdl 8192]} (39. b5 $11) 39... Qf2 $19 {[%emt 0:00:27]} 40. Qb2 {[%emt 0:01:01]} Re1+ $2 {[%emt 0:01:55]} (40... Kg8 {( -> ...Nc4)} 41. Rf1 Rxh3) 41. Rxe1 $19 {[%emt 0:00:31]} Rxe1+ {[%emt 0:00:02]} 42. Rxe1 {[%emt 0:00:11]} Qxe1+ {[%emt 0:00:06]} 43. Qc1 {[%emt 0:00:04]} Qxb4+ {[%emt 0:00:02]} 44. Bb3 {[%emt 0:01:44]} Qe4+ {[%emt 0:00:26]} 45. Ka1 {[%emt 0:01:07]} (45. Bc2 {was worth a try.} Qxd5 46. Qd1 Qb7+ 47. Bb3) 45... Qd4+ {[%emt 0:00:08]} 46. Qb2 $2 {[%emt 0:00:07]} (46. Kb1) 46... Qg1+ $19 {[%emt 0:00:05]} 47. Qb1 {[%emt 0:00:04]} Qe3 {[%emt 0:00:08]} ({Don't take} 47... Qg2 48. Qc1 Qxh3 49. g5 $19) 48. a4 {[%emt 0:01:36]} Qxh3 {[%emt 0:00:06]} 49. Qb2 $2 {[%emt 0:00:51]} (49. Bd1) 49... Qxg4 $19 {[%emt 0:00:53]} 50. Qc3 {[%emt 0:00:16]} h5 {[%emt 0:00:18]} 51. a5 {[%emt 0:00:03]} h4 {[%emt 0:00:27]} 52. a6 {[%emt 0:00:04]} h3 {[%emt 0:00:17]} 53. a7 {[%emt 0:00:08]} Qg1+ {[%emt 0:00:10]} 54. Kb2 {[%emt 0:00:06]} Qf2+ {[%emt 0:00:10]} 55. Bc2 {[%emt 0:00:05]} Qxa7 {[%emt 0:00:08]} 56. Qxh3 {[%emt 0:00:05]} Nc4+ {[%emt 0:00:25]} 57. Kb1 {[%emt 0:00:10]} Qd4 {[%emt 0:00:11]} 58. Kc1 {[%emt 0:00:24]} Qa1+ {[%emt 0:00:08]} 0-1

[Event "Baku Open 2024"]
[Site "Baku"]
[Date "2024.07.07"]
[Round "9.22"]
[White "Davidov, Samir"]
[Black "Soham Kamotra"]
[Result "0-1"]
[ECO "D02"]
[WhiteElo "2244"]
[BlackElo "2388"]
[Annotator "TA"]
[PlyCount "66"]
[EventDate "2024.06.29"]
[EventType "swiss"]
[EventCountry "AZE"]
[SourceTitle "playchess.com"]
[Source "ChessBase"]
[SourceQuality "1"]
[TimeControl "5400+30"]

{[%evp 11,66,2,16,12,13,15,21,-28,-34,-33,-44,-61,-60,-111,-129,-137,-138,-125,-67,-72,-19,-29,-20,-56,-10,-17,-23,-41,-29,-29,16,-33,-27,-34,-34,-142,-159,-146,-146,-209,-220,-215,-222,-221,-209,-303,-264,-429,-415,-543,-521,-536,-535,-537,-516,-971,-946]} 1. d4 {[%emt 0:02:20]} Nf6 {[%emt 0:00:05]} 2. Bf4 {[%emt 0:00:30]} e6 {[%emt 0:00:08]} 3. e3 {[%emt 0:00:45]} c5 {[%emt 0:00:04]} 4. c3 {[%emt 0:01:02]} d5 {[%emt 0:00:06]} 5. Nf3 {[%emt 0:02:58]} Nc6 {[%emt 0:00:26]} 6. Nbd2 {[%emt 0:00:33]} cxd4 {[%emt 0:00:05]} 7. exd4 {[%emt 0:00:36]} Nh5 {[%emt 0:00:03]} 8. Bg5 {[%emt 0:06:20]} f6 {[%emt 0:00:16]} 9. Bh4 {[%emt 0:00:30]} (9. Be3 $142 Bd6 10. Bb5) 9... Bd6 $11 {[%emt 0:00:05]} 10. Ne5 {[%emt 0:08:13]} Nf4 {[%emt 0:03:08]} 11. Nd3 {[%emt 0:03:24]} Ng6 {[%emt 0:05:49] Black is more active.} 12. Qh5 {[%emt 0:14:36]} (12. Bg3 $15) 12... O-O $17 {[%emt 0:01:18]} 13. Be2 {[%emt 0:04:16]} Nxh4 {[%emt 0:02:50]} 14. Qxh4 {[%emt 0:00:06]} Ne7 {[%emt 0:02:12]} (14... Qc7 $17 15. f4 e5 16. dxe5 fxe5 17. fxe5 Nxe5 18. Nxe5 Bxe5) 15. f4 $1 $15 {[%emt 0:01:24] [#]} Qc7 {[%emt 0:16:32]} ({Black should play} 15... Ng6 $1 $17 {[%cal Rg6h4]} 16. Qg3 Re8) 16. O-O $11 {[%emt 0:07:10]} Bd7 {[%emt 0:00:18]} 17. Bg4 {[%emt 0:14:53]} Rae8 {[%emt 0:06:19]} (17... Ng6 $15 {was preferrable.} 18. Qg3 Kh8) 18. Qh3 {[%emt 0:00:21]} Nf5 {[%emt 0:01:37]} 19. Rae1 {[%emt 0:00:22]} g6 {[%emt 0:00:29]} 20. Qf3 {[%emt 0:04:08]} Kh8 {[%emt 0:07:08]} 21. Nb3 {[%emt 0:02:19]} (21. Bxf5 $11 gxf5 22. Re3) 21... b6 {[%emt 0:01:22]} 22. Qd1 {[%emt 0:01:18]} a5 {[%emt 0:03:07]} 23. Bf3 {[%emt 0:00:46]} (23. Nbc1 $15) 23... a4 $17 {[%emt 0:03:16]} ({Don't play} 23... Bxf4 24. Nxf4 Qxf4 25. Bxd5 $11) 24. Nbc1 {[%emt 0:00:25]} a3 {[%emt 0:00:07] [#] And now ...axb2 would win.} 25. Rf2 {[%emt 0:02:15]} (25. Qd2 $17) 25... axb2 $19 {[%emt 0:01:45]} ({But not} 25... Bxf4 26. Nxf4 Qxf4 27. bxa3 $17) 26. Rxb2 {[%emt 0:00:01]} Qxc3 {[%emt 0:00:21]} ({Inferior is} 26... Bxf4 27. Nxf4 Qxf4 28. Rxb6 $11) 27. Ne2 {[%emt 0:00:08]} Qa5 {[%emt 0:00:57] Strongly threatening ...Ba3.} 28. Qb1 {[%emt 0:00:04]} (28. Qd2 $142) 28... Rb8 {[%emt 0:02:40]} 29. Rc1 $2 {[%emt 0:02:13]} (29. Bg4 {keeps fighting.}) 29... Ba3 {[%emt 0:00:35]} 30. Rc7 {[%emt 0:05:42]} Bxb2 {[%emt 0:00:22] Black is clearly winning.} 31. Qxb2 {[%emt 0:00:11]} Bb5 {[%emt 0:00:59]} 32. Nb4 {[%emt 0:00:07]} Rbc8 {[%emt 0:00:38]} 33. Rb7 {[%emt 0:00:45]} (33. Rc3 $142) 33... Bc6 {[%emt 0:00:38] Weighted Error Value: White=0.61/Black=0.10 (very precise) .  Mistake:       	White=8     	Black=3      Inaccurate:     	White=2     	Black=1      OK:         	White=5     	Black=20     Best:        	White=1     	---        Strong:       	White=1     	---} 0-1

[Event "Baku Open 2024"]
[Site "Baku"]
[Date "2024.07.07"]
[Round "9.23"]
[White "Atakishiyev, Elmar"]
[Black "Orujov, Farid"]
[Result "1/2-1/2"]
[ECO "C43"]
[WhiteElo "2356"]
[BlackElo "2243"]
[Annotator "TA"]
[PlyCount "50"]
[EventDate "2024.06.29"]
[EventType "swiss"]
[EventCountry "AZE"]
[SourceTitle "playchess.com"]
[Source "ChessBase"]
[SourceQuality "1"]
[TimeControl "5400+30"]

{[%evp 12,50,14,15,10,14,14,14,9,15,13,6,4,8,7,12,10,18,13,18,16,8,24,0,0,0,0,0,0,0,10,0,0,0,0,0,22,0,0,0,33]} 1. e4 {[%emt 0:00:07]} e5 {[%emt 0:00:13]} 2. Nf3 {[%emt 0:00:11]} Nf6 {[%emt 0:00:09]} 3. d4 {[%emt 0:00:35]} Nxe4 {[%emt 0:00:24]} 4. Bd3 {[%emt 0:00:13]} Nc6 {[%emt 0:00:26]} 5. Nxe5 {[%emt 0:07:58]} Nxe5 {[%emt 0:05:22]} 6. Bxe4 {[%emt 0:01:02]} d5 {[%emt 0:02:12]} 7. dxe5 {[%emt 0:02:53]} dxe4 {[%emt 0:00:31]} 8. Qxd8+ {[%emt 0:04:51]} Kxd8 {[%emt 0:00:38]} 9. Bg5+ {[%emt 0:00:07]} Ke8 {[%emt 0:04:43]} 10. Nc3 {[%emt 0:03:48]} Bb4 {[%emt 0:04:05]} 11. O-O-O {[%emt 0:02:30][%csl Gg5][%cal Rd1d8] [#]} Bg4 {[%emt 0:02:41] And now ...Bxc3 would win.} 12. Rd4 {[%emt 0:02:04]} Bxc3 {[%emt 0:00:25]} 13. bxc3 {[%emt 0:00:12][%cal Oh2h3] Threatening h3!} h6 {[%emt 0:00:37] Black is weak on the dark squares} 14. Rxe4 {[%emt 0:01:15]} Bf3 {[%emt 0:00:57]} 15. gxf3 {[%emt 0:00:45]} hxg5 $11 {[%emt 0:00:07][%mdl 4096] Endgame. KRR-KRR} 16. Rg4 {[%emt 0:00:35]} Rh5 {[%emt 0:00:42]} 17. h4 {[%emt 0:00:40]} gxh4 {[%emt 0:00:21] The position is equal.} 18. Rhxh4 {[%emt 0:00:35]} (18. Rgxh4 Rxh4 19. Rxh4 Kd7 $14) 18... Rxh4 {[%emt 0:00:08]} 19. Rxh4 {[%emt 0:00:06] [#] Rh8+ is the strong threat. KR-KR} Ke7 {[%emt 0:00:16]} 20. Kd2 {[%emt 0:00:36]} Ke6 {[%emt 0:00:14]} 21. f4 {[%emt 0:00:22]} Rd8+ {[%emt 0:00:08]} 22. Ke3 {[%emt 0:00:31]} g6 {[%emt 0:00:35]} 23. Rh1 {[%emt 0:00:13]} Kf5 {[%emt 0:01:02]} 24. Rh7 {[%emt 0:01:35]} Ke6 {[%emt 0:00:18]} 25. Rh1 {[%emt 0:00:40]} Kf5 {[%emt 1:15:46] Not much happened in this game.   Weighted Error Value: White=0.04 (flawless) /Black=0.03 (flawless) .  Inaccurate:     	---       	Black=1      OK:         	White=6     	Black=10     Best:        	---       	Black=1} 1/2-1/2

[Event "Baku Open 2024"]
[Site "Baku"]
[Date "2024.07.07"]
[Round "9.24"]
[White "Mammadova, Gulnar"]
[Black "Amangeldy, Ernur"]
[Result "1-0"]
[ECO "B30"]
[WhiteElo "2348"]
[BlackElo "2223"]
[Annotator "TA"]
[PlyCount "27"]
[EventDate "2024.06.29"]
[EventType "swiss"]
[EventCountry "AZE"]
[SourceTitle "playchess.com"]
[Source "ChessBase"]
[SourceQuality "1"]
[TimeControl "5400+30"]

{[%evp 9,27,24,60,55,111,86,134,141,130,142,561,557,655,651,633,633,1020,694,1040,811]} 1. e4 {[%emt 0:00:04]} c5 {[%emt 0:01:16]} 2. Nf3 {[%emt 0:00:09]} Nc6 {[%emt 0:00:14]} 3. Bb5 {[%emt 0:00:09]} e5 {[%emt 0:00:27]} 4. O-O {[%emt 0:00:15]} Bd6 {[%emt 0:00:05]} 5. d3 {[%emt 0:00:58]} Nge7 {[%emt 0:08:31]} 6. Bc4 {[%emt 0:00:35]} h6 {[%emt 0:02:08] Prevents Ng5.} (6... O-O $14) 7. Nc3 {[%emt 0:01:47]} O-O {[%emt 0:05:22]} ({Better is} 7... Ng6) 8. Nh4 $16 {[%emt 0:10:01] aiming for Qh5. White is clearly better.} Bc7 {[%emt 0:01:42][%cal Od7d5]} 9. Qh5 {[%emt 0:05:14][%cal Oc1h6] [#] Black must now prevent Bxh6! White is more active.} Na5 $2 {[%emt 0:31:00][%mdl 8192]} (9... Nd4 $16 {is a better chance.} 10. f4 d5) 10. Bd5 $18 {[%emt 0:07:38] White is clearly winning.} (10. Bxh6 gxh6 11. Qxh6 Nxc4 $18) 10... d6 {[%emt 0:01:58]} 11. f4 {[%emt 0:02:46]} exf4 {[%emt 0:02:40]} 12. Bxf4 {[%emt 0:01:19]} Be6 {[%emt 0:01:16]} 13. Nf5 {[%emt 0:12:49]} Nxd5 {[%emt 0:03:20]} 14. Nxd5 {[%emt 0:02:18] Black did not feel at home in the position after the opening.   Weighted Error Value: White=0.47/Black=1.12.  Loses game:     	---       	Black=1      Mistake:       	---       	Black=2      OK:         	White=2     	Black=2      Best:        	White=1     	---} 1-0

[Event "Baku Open 2024"]
[Site "Baku"]
[Date "2024.07.07"]
[Round "9.25"]
[White "Zhukova, Natalia"]
[Black "Prokhorov, Aleksey"]
[Result "1/2-1/2"]
[ECO "E94"]
[WhiteElo "2306"]
[BlackElo "2161"]
[Annotator "TA"]
[PlyCount "85"]
[EventDate "2024.06.29"]
[EventType "swiss"]
[EventCountry "AZE"]
[SourceTitle "playchess.com"]
[Source "ChessBase"]
[SourceQuality "1"]
[TimeControl "5400+30"]

{[%evp 22,85,86,73,77,73,84,84,95,56,58,58,57,59,68,46,42,39,43,18,31,-73,-98,-72,-91,-74,-67,-69,-72,-66,-65,-196,-67,-73,-9,-48,-44,-37,-43,-51,-10,-14,-12,-14,0,0,0,0,0,0,0,0,0,0,0,0,142,152,145,149,145,0,0,0,145,0]} 1. d4 {[%emt 0:00:04]} Nf6 {[%emt 0:00:33]} 2. c4 {[%emt 0:00:10]} g6 {[%emt 0:00:31]} 3. Nc3 {[%emt 0:00:06]} Bg7 {[%emt 0:00:26]} 4. e4 {[%emt 0:00:11]} d6 {[%emt 0:00:38]} 5. Be2 {[%emt 0:00:17]} O-O {[%emt 0:00:49]} 6. Nf3 {[%emt 0:00:13]} e5 {[%emt 0:00:42]} 7. O-O {[%emt 0:00:09]} Na6 {[%emt 0:00:45]} 8. Be3 {[%emt 0:00:53]} c6 {[%emt 0:01:21]} 9. d5 {[%emt 0:10:26]} Ng4 {[%emt 0:01:10][%cal Bf6g4,Bg4h6,Bh6f7][%mdl 32]} 10. Bg5 {[%emt 0:00:12]} f6 {[%emt 0:00:08]} 11. Bh4 {[%emt 0:01:59]} c5 {[%emt 0:01:14]} 12. Ne1 {[%emt 0:12:31]} Nh6 {[%emt 0:02:20]} 13. f3 {[%emt 0:06:45]} Nf7 {[%emt 0:02:45]} 14. a3 {[%emt 0:00:27] White is more active.} Bh6 {[%emt 0:01:00] White is better.} 15. Bf2 {[%emt 0:01:26]} Bd7 {[%emt 0:06:52]} 16. Rb1 {[%emt 0:10:18]} b6 {[%emt 0:03:37]} 17. b4 {[%emt 0:00:17]} f5 {[%emt 0:07:03]} 18. Nd3 {[%emt 0:01:19]} Nc7 {[%emt 0:02:28]} 19. Kh1 {[%emt 0:11:17]} Ne8 {[%emt 0:07:56]} 20. bxc5 {[%emt 0:03:50]} bxc5 {[%emt 0:00:49] [#]} 21. f4 {[%emt 0:17:21]} fxe4 {[%emt 0:20:05]} 22. Nxe4 {[%emt 0:00:27] Threatens to win with fxe5.} exf4 {[%emt 0:00:12]} (22... Bxf4 23. Nxf4 exf4 24. Be1 $11) 23. Bg4 {[%emt 0:05:28]} Bxg4 {[%emt 0:00:16]} 24. Qxg4 {[%emt 0:00:03]} Nf6 {[%emt 0:00:16]} 25. Nxf6+ {[%emt 0:00:20]} Qxf6 {[%emt 0:00:06]} 26. Bh4 {[%emt 0:07:07] [#]} ({White should play} 26. Bg3 $1 $15) 26... Qd4 {[%emt 0:05:06]} ({Better is} 26... g5 $1 $19 {White must now prevent ...Qg6.} 27. Nxf4 Ne5) 27. Nxf4 $15 {[%emt 0:00:03]} Qxc4 {[%emt 0:01:53]} (27... Rab8 $1 $17 {[%cal Rb8b1]} 28. Rbe1 Rfe8 (28... Qxc4 29. Nh5 $17)) 28. h3 {[%emt 0:03:55][%cal Of4g6]} Bxf4 {[%emt 0:08:33]} 29. Rxf4 {[%emt 0:00:03]} Qxd5 {[%emt 0:00:07] And now ...Ne5 would win.} 30. Rd1 {[%emt 0:02:52]} Qb7 {[%emt 0:13:26]} 31. Rf6 {[%emt 0:00:43][%cal Of6g6] Threatening mate with Rxg6+!} Kg7 {[%emt 0:02:27] Threatening ...Nh6.} 32. Re6 {[%emt 0:01:46]} Rfe8 {[%emt 0:07:46] Inhibits Re7.} 33. Rde1 {[%emt 0:03:21]} Rxe6 {[%emt 0:02:05]} 34. Qxe6 {[%emt 0:00:02]} g5 {[%emt 0:01:24]} 35. Bg3 {[%emt 0:00:06]} Rd8 {[%emt 0:00:30]} 36. Rf1 {[%emt 0:00:47]} Qd7 $1 {[%emt 0:00:23]} 37. Qf6+ {[%emt 0:00:52]} Kg8 {[%emt 0:00:06]} 38. Bxd6 $1 {[%emt 0:00:36]} Nxd6 {[%emt 0:01:07]} (38... Qxd6 $11 {keeps the balance.} 39. Qxf7+ Kh8) 39. Qxg5+ $16 {[%emt 0:00:07]} Kh8 {[%emt 0:00:03] Hoping for ...Nb7.} 40. Qf6+ {[%emt 0:00:06][%mdl 1024] White has strong compensation.} Kg8 {[%emt 0:00:04] ...Ne4 would now be deadly.} 41. Qg5+ {[%emt 0:01:25]} Kh8 {[%emt 0:00:05] ...Nb7 is the strong threat.} 42. Qf6+ {[%emt 0:00:02]} Kg8 {[%emt 0:00:02] [#] aiming for ...Ne4.} 43. Qg5+ {[%emt 0:00:58] Weighted Error Value: White=0.23 (precise) /Black=0.16 (very precise) .  Mistake:       	White=3     	Black=3      Inaccurate:     	White=2     	Black=1      OK:         	White=14    	Black=11     Best:        	White=3     	Black=6      Strong:       	White=1     	Black=1} ({White must play} 43. Rf4 $1 $16 {[%cal Rf4g4]} Nf5 (43... Nf7 $2 44. Rg4+ Kf8 45. Qg7+ Ke7 46. Re4+ Kd6 47. Qf6+ Kc7 48. Re7 $18) 44. Rxf5 (44. Qxf5 Qxf5 45. Rxf5 Rc8 $11) 44... Qd1+ 45. Rf1) 1/2-1/2